[Event "*** Titled Tuesday Blitz"]
[Site "Chess.com"]
[Date "2019.08.06"]
[Round "3"]
[White "colegiodemadrid"]
[Black "chedimir"]
[Result "0-1"]
[WhiteElo "2326"]
[BlackElo "2277"]
[TimeControl "180+2"]
[EndTime "13:33:53 PDT"]
[Termination "chedimir won by resignation"]

1. e4 {[%clk 0:03:01.9]} 1... g6 {[%clk 0:02:59.7]} 2. d4 {[%clk 0:03:02.4]}
2... Bg7 {[%clk 0:03:00]} 3. Nf3 {[%clk 0:03:04]} 3... d6 {[%clk 0:03:00.6]} 4.
Bc4 {[%clk 0:03:05.6]} 4... e6 {[%clk 0:03:01.2]} 5. Qe2 {[%clk 0:03:03.8]} 5...
Ne7 {[%clk 0:03:01]} 6. O-O {[%clk 0:03:05.1]} 6... a6 {[%clk 0:03:01.2]} 7. a4
{[%clk 0:03:05.7]} 7... b6 {[%clk 0:03:01.7]} 8. Nc3 {[%clk 0:03:05.2]} 8... Bb7
{[%clk 0:03:02.1]} 9. Ba2 {[%clk 0:03:06.6]} 9... Nd7 {[%clk 0:03:01]} 10. Bf4
{[%clk 0:03:07.1]} 10... O-O {[%clk 0:02:55.9]} 11. h4 {[%clk 0:03:08.3]} 11...
e5 {[%clk 0:02:51.6]} 12. dxe5 {[%clk 0:03:07.3]} 12... dxe5 {[%clk 0:02:51.1]}
13. Bg5 {[%clk 0:03:06.4]} 13... h6 {[%clk 0:02:51.3]} 14. Be3 {[%clk
0:03:05.3]} 14... Nc6 {[%clk 0:02:51.1]} 15. Rad1 {[%clk 0:03:03.4]} 15... Qe7
{[%clk 0:02:50.8]} 16. Nd5 {[%clk 0:03:02.6]} 16... Qd8 {[%clk 0:02:43.8]} 17.
Qd2 {[%clk 0:02:58.7]} 17... Kh7 {[%clk 0:02:40.9]} 18. Nxc7 {[%clk 0:02:53]}
18... Qxc7 {[%clk 0:02:20.3]} 19. Qxd7 {[%clk 0:02:53.1]} 19... Rac8 {[%clk
0:02:20.5]} 20. Qxc7 {[%clk 0:02:50.4]} 20... Rxc7 {[%clk 0:02:20.2]} 21. Bxb6
{[%clk 0:02:52]} 21... Rcc8 {[%clk 0:02:19.6]} 22. Rd7 {[%clk 0:02:52.1]} 22...
Ba8 {[%clk 0:02:19.3]} 23. h5 {[%clk 0:02:53.2]} 23... gxh5 {[%clk 0:02:14.8]}
24. Bxf7 {[%clk 0:02:44.9]} 24... Nd4 {[%clk 0:02:14.9]} 25. Nxd4 {[%clk
0:02:29.6]} 25... exd4 {[%clk 0:02:14.9]} 26. Bd5 {[%clk 0:02:26.4]} 26... Bxd5
{[%clk 0:02:07.9]} 27. exd5 {[%clk 0:02:27.4]} 27... Kg6 {[%clk 0:02:08.6]} 28.
Bc7 {[%clk 0:02:22.1]} 28... Rf5 {[%clk 0:02:06.5]} 29. d6 {[%clk 0:02:21.9]}
29... Rc5 {[%clk 0:02:06.6]} 30. Re1 {[%clk 0:02:11.3]} 30... Bf6 {[%clk
0:02:00.6]} 31. Re2 {[%clk 0:02:06.9]} 31... Rc6 {[%clk 0:01:55.9]} 32. g3
{[%clk 0:02:05.9]} 32... h4 {[%clk 0:01:55.5]} 33. Kg2 {[%clk 0:02:05.4]} 33...
hxg3 {[%clk 0:01:55.9]} 34. fxg3 {[%clk 0:02:07.3]} 34... Rg8 {[%clk 0:01:55.8]}
35. Kf3 {[%clk 0:02:01.2]} 35... h5 {[%clk 0:01:53]} 36. Ke4 {[%clk 0:02:01.4]}
36... Re8+ {[%clk 0:01:52.9]} 37. Kd3 {[%clk 0:02:02.5]} 37... Rxe2 {[%clk
0:01:53.2]} 38. Kxe2 {[%clk 0:02:03.7]} 38... Rxc2+ {[%clk 0:01:53.9]} 39. Kd3
{[%clk 0:02:05.1]} 39... Rxb2 {[%clk 0:01:54.7]} 40. a5 {[%clk 0:02:02.9]} 40...
Rb3+ {[%clk 0:01:55.1]} 41. Kd2 {[%clk 0:02:03.3]} 41... Rb2+ {[%clk 0:01:54.8]}
42. Kd1 {[%clk 0:02:03.6]} 42... d3 {[%clk 0:01:55.2]} 43. Bb6 {[%clk 0:02:04]}
43... Bg5 {[%clk 0:01:54.9]} 0-1

[Event "*** Titled Tuesday Blitz"]
[Site "Chess.com"]
[Date "2019.08.06"]
[Round "3"]
[White "BilodeauA"]
[Black "Airquake"]
[Result "1-0"]
[WhiteElo "2907"]
[BlackElo "2630"]
[TimeControl "180+2"]
[EndTime "13:34:04 PDT"]
[Termination "BilodeauA won by resignation"]

1. e4 {[%clk 0:03:01.9]} 1... c5 {[%clk 0:03:00.8]} 2. Nf3 {[%clk 0:03:01.7]}
2... d6 {[%clk 0:02:58.8]} 3. d4 {[%clk 0:03:02.9]} 3... cxd4 {[%clk 0:03:00.7]}
4. Nxd4 {[%clk 0:03:04.7]} 4... Nf6 {[%clk 0:03:02.1]} 5. Nc3 {[%clk 0:03:06.4]}
5... a6 {[%clk 0:03:03.3]} 6. Nb3 {[%clk 0:03:07.4]} 6... g6 {[%clk 0:03:01.1]}
7. Be3 {[%clk 0:03:07.3]} 7... Bg7 {[%clk 0:03:02.5]} 8. Qd2 {[%clk 0:03:08.5]}
8... Nc6 {[%clk 0:02:59.7]} 9. f3 {[%clk 0:03:09.5]} 9... b5 {[%clk 0:03:00.4]}
10. Bh6 {[%clk 0:03:09.6]} 10... Bxh6 {[%clk 0:02:54]} 11. Qxh6 {[%clk
0:03:11.5]} 11... Qb6 {[%clk 0:02:32]} 12. O-O-O {[%clk 0:03:08.4]} 12... Be6
{[%clk 0:02:32.5]} 13. Kb1 {[%clk 0:03:06.4]} 13... Ne5 {[%clk 0:02:24.9]} 14.
Qd2 {[%clk 0:02:52.6]} 14... O-O {[%clk 0:02:16.4]} 15. Qd4 {[%clk 0:02:37.7]}
15... Qc7 {[%clk 0:02:12.2]} 16. f4 {[%clk 0:02:35.9]} 16... Nc4 {[%clk
0:02:12.3]} 17. Bxc4 {[%clk 0:02:25.7]} 17... bxc4 {[%clk 0:02:12]} 18. Nd2
{[%clk 0:02:24.8]} 18... Rab8 {[%clk 0:02:11.4]} 19. Ka1 {[%clk 0:02:24.6]}
19... Rfc8 {[%clk 0:01:51.8]} 20. Rhf1 {[%clk 0:02:24.9]} 20... Qb7 {[%clk
0:01:15.4]} 21. Rb1 {[%clk 0:02:24.9]} 21... d5 {[%clk 0:01:16.7]} 22. f5 {[%clk
0:02:22.7]} 22... gxf5 {[%clk 0:01:10.6]} 23. exf5 {[%clk 0:02:23.9]} 23... Bd7
{[%clk 0:01:11.6]} 24. g4 {[%clk 0:02:25.2]} 24... Bc6 {[%clk 0:00:59.6]} 25. g5
{[%clk 0:02:20.6]} 25... Ne8 {[%clk 0:01:00.1]} 26. Nf3 {[%clk 0:02:11.3]} 26...
Qb6 {[%clk 0:00:52.9]} 27. Qxb6 {[%clk 0:02:08.3]} 27... Rxb6 {[%clk 0:00:54]}
28. Nd4 {[%clk 0:02:09.2]} 28... Nd6 {[%clk 0:00:53.9]} 29. Nxc6 {[%clk
0:02:10.1]} 29... Rbxc6 {[%clk 0:00:51.8]} 30. Nxd5 {[%clk 0:02:11.6]} 30... Kf8
{[%clk 0:00:51.9]} 31. Rbe1 {[%clk 0:02:10.6]} 31... Rc5 {[%clk 0:00:46.3]} 32.
Nxe7 {[%clk 0:02:11.7]} 32... Re8 {[%clk 0:00:47.5]} 33. g6 {[%clk 0:02:10.8]}
33... Nxf5 {[%clk 0:00:40.9]} 34. gxh7 {[%clk 0:02:05.1]} 34... Kg7 {[%clk
0:00:40.2]} 35. Nxf5+ {[%clk 0:02:04.4]} 35... Rxf5 {[%clk 0:00:41]} 36. Rg1+
{[%clk 0:02:05.7]} 1-0

[Event "*** Titled Tuesday Blitz"]
[Site "Chess.com"]
[Date "2019.08.06"]
[Round "3"]
[White "timator"]
[Black "nailbeshirli"]
[Result "0-1"]
[WhiteElo "2395"]
[BlackElo "2637"]
[TimeControl "180+2"]
[EndTime "13:34:05 PDT"]
[Termination "nailbeshirli won by resignation"]

1. Nf3 {[%clk 0:03:01.9]} 1... Nf6 {[%clk 0:03:00.1]} 2. g3 {[%clk 0:02:59.3]}
2... c5 {[%clk 0:03:00.2]} 3. Bg2 {[%clk 0:02:57]} 3... Nc6 {[%clk 0:02:54.7]}
4. O-O {[%clk 0:02:58.2]} 4... g6 {[%clk 0:02:55.3]} 5. c4 {[%clk 0:02:58.9]}
5... Bg7 {[%clk 0:02:55.9]} 6. Nc3 {[%clk 0:03:00.5]} 6... O-O {[%clk
0:02:57.8]} 7. b3 {[%clk 0:03:01.1]} 7... d6 {[%clk 0:02:59.7]} 8. Bb2 {[%clk
0:03:01.4]} 8... e5 {[%clk 0:02:48.3]} 9. d3 {[%clk 0:02:58]} 9... h6 {[%clk
0:02:46.6]} 10. e3 {[%clk 0:02:57.8]} 10... Bg4 {[%clk 0:02:46.2]} 11. h3 {[%clk
0:02:58.2]} 11... Be6 {[%clk 0:02:47.5]} 12. Nd2 {[%clk 0:02:52.1]} 12... Qd7
{[%clk 0:02:47.5]} 13. Kh2 {[%clk 0:02:53.3]} 13... Nh7 {[%clk 0:02:46.5]} 14.
Nd5 {[%clk 0:02:40.8]} 14... f5 {[%clk 0:02:46.8]} 15. a3 {[%clk 0:02:42.1]}
15... Ne7 {[%clk 0:02:43]} 16. Nxe7+ {[%clk 0:02:38.5]} 16... Qxe7 {[%clk
0:02:42.9]} 17. Qc2 {[%clk 0:02:35.8]} 17... g5 {[%clk 0:02:43.6]} 18. f4 {[%clk
0:02:31.4]} 18... g4 {[%clk 0:02:31.4]} 19. h4 {[%clk 0:02:26.4]} 19... Nf6
{[%clk 0:02:26.9]} 20. d4 {[%clk 0:02:10.7]} 20... cxd4 {[%clk 0:02:08.4]} 21.
exd4 {[%clk 0:02:03.2]} 21... exf4 {[%clk 0:02:08.3]} 22. gxf4 {[%clk
0:01:20.2]} 22... Nh5 {[%clk 0:02:03.9]} 23. Kg1 {[%clk 0:01:21]} 23... Qxh4
{[%clk 0:02:03.6]} 24. Rae1 {[%clk 0:01:20.9]} 24... Nxf4 {[%clk 0:01:50.1]} 25.
Re3 {[%clk 0:00:51.3]} 25... Nxg2 {[%clk 0:01:46.4]} 26. Kxg2 {[%clk 0:00:53.2]}
26... f4 {[%clk 0:01:38.4]} 27. Rxe6 {[%clk 0:00:45.8]} 27... f3+ {[%clk
0:01:38.6]} 28. Nxf3 {[%clk 0:00:46.6]} 28... gxf3+ {[%clk 0:01:39.4]} 29. Rxf3
{[%clk 0:00:48.5]} 29... Rxf3 {[%clk 0:01:35.3]} 0-1

[Event "*** Titled Tuesday Blitz"]
[Site "Chess.com"]
[Date "2019.08.06"]
[Round "3"]
[White "731291"]
[Black "SanchezKelvin"]
[Result "0-1"]
[WhiteElo "2675"]
[BlackElo "2453"]
[TimeControl "180+2"]
[EndTime "13:34:13 PDT"]
[Termination "SanchezKelvin won by resignation"]

1. d4 {[%clk 0:03:01.9]} 1... Nf6 {[%clk 0:03:00.1]} 2. Nf3 {[%clk 0:03:02.7]}
2... e6 {[%clk 0:03:01.1]} 3. g3 {[%clk 0:03:03.4]} 3... c5 {[%clk 0:03:00.2]}
4. Bg2 {[%clk 0:03:04.3]} 4... Qc7 {[%clk 0:02:56.7]} 5. O-O {[%clk 0:03:05.4]}
5... a6 {[%clk 0:02:57.6]} 6. b3 {[%clk 0:03:06.5]} 6... b5 {[%clk 0:02:56.1]}
7. Bb2 {[%clk 0:03:06.2]} 7... Bb7 {[%clk 0:02:57]} 8. Nbd2 {[%clk 0:03:05.8]}
8... Be7 {[%clk 0:02:56.6]} 9. c4 {[%clk 0:03:06.4]} 9... cxd4 {[%clk 0:02:54]}
10. Bxd4 {[%clk 0:02:46.2]} 10... b4 {[%clk 0:02:51.4]} 11. Qc2 {[%clk
0:02:45.9]} 11... a5 {[%clk 0:02:51.3]} 12. Rac1 {[%clk 0:02:44.9]} 12... Na6
{[%clk 0:02:51.1]} 13. e4 {[%clk 0:02:44.4]} 13... d6 {[%clk 0:02:51.9]} 14.
Rfe1 {[%clk 0:02:42.8]} 14... e5 {[%clk 0:02:52.5]} 15. Bb2 {[%clk 0:02:40.2]}
15... Nc5 {[%clk 0:02:52.9]} 16. Nh4 {[%clk 0:02:39.8]} 16... O-O {[%clk
0:02:45.2]} 17. Nf5 {[%clk 0:02:40.5]} 17... Rfd8 {[%clk 0:02:43.6]} 18. h3
{[%clk 0:02:39.9]} 18... Bf8 {[%clk 0:02:44.1]} 19. g4 {[%clk 0:02:39.6]} 19...
g6 {[%clk 0:02:44.6]} 20. Ne3 {[%clk 0:02:37.5]} 20... Bh6 {[%clk 0:02:45.1]}
21. Rcd1 {[%clk 0:02:38]} 21... Ne6 {[%clk 0:02:36.9]} 22. h4 {[%clk 0:02:34.2]}
22... Bxe3 {[%clk 0:02:36.7]} 23. Rxe3 {[%clk 0:02:27.4]} 23... Nxg4 {[%clk
0:02:36.8]} 24. Rg3 {[%clk 0:02:27.7]} 24... h5 {[%clk 0:02:30.8]} 25. Nf1
{[%clk 0:02:22.6]} 25... Nf4 {[%clk 0:02:28.4]} 26. Ne3 {[%clk 0:02:18.6]} 26...
Qe7 {[%clk 0:02:25.3]} 27. Nxg4 {[%clk 0:02:18.3]} 27... hxg4 {[%clk 0:02:21.6]}
28. Rxg4 {[%clk 0:02:19.7]} 28... Kh7 {[%clk 0:02:19.4]} 29. Bf3 {[%clk
0:02:14.6]} 29... f5 {[%clk 0:02:18.4]} 30. Rg5 {[%clk 0:02:14]} 30... Nh3+
{[%clk 0:02:17.9]} 31. Kf1 {[%clk 0:01:52.5]} 31... Nxg5 {[%clk 0:02:18.5]} 32.
hxg5 {[%clk 0:01:54.4]} 32... Qxg5 {[%clk 0:02:16.1]} 33. Ke2 {[%clk 0:01:55.7]}
33... Qf4 {[%clk 0:02:07.7]} 34. Rh1+ {[%clk 0:01:51]} 34... Kg7 {[%clk
0:02:00.6]} 35. Bc1 {[%clk 0:01:51.8]} 35... Qxf3+ {[%clk 0:01:54.9]} 36. Kxf3
{[%clk 0:01:53.7]} 36... Bxe4+ {[%clk 0:01:56.1]} 37. Qxe4 {[%clk 0:01:55]}
37... fxe4+ {[%clk 0:01:58]} 38. Kxe4 {[%clk 0:01:56.9]} 38... Rh8 {[%clk
0:01:53.6]} 39. Rd1 {[%clk 0:01:56.4]} 39... Rh4+ {[%clk 0:01:42.5]} 40. f4
{[%clk 0:01:57.4]} 40... exf4 {[%clk 0:01:41.3]} 41. Rxd6 {[%clk 0:01:58.3]}
41... Re8+ {[%clk 0:01:40.9]} 42. Kf3 {[%clk 0:01:59.3]} 42... g5 {[%clk
0:01:41.2]} 43. Bb2+ {[%clk 0:01:59.6]} 43... Kh7 {[%clk 0:01:41]} 44. Rd7+
{[%clk 0:02:00.5]} 44... Kg6 {[%clk 0:01:39.5]} 45. Rg7+ {[%clk 0:01:58.9]}
45... Kh6 {[%clk 0:01:39.7]} 46. Rf7 {[%clk 0:01:54.4]} 46... Re3+ {[%clk
0:01:39.1]} 47. Kf2 {[%clk 0:01:55.6]} 47... Rh2+ {[%clk 0:01:39]} 0-1

[Event "*** Titled Tuesday Blitz"]
[Site "Chess.com"]
[Date "2019.08.06"]
[Round "3"]
[White "Vnebo"]
[Black "Philosopherrr"]
[Result "1-0"]
[WhiteElo "2702"]
[BlackElo "2466"]
[TimeControl "180+2"]
[EndTime "13:34:29 PDT"]
[Termination "Vnebo won by resignation"]

1. e4 {[%clk 0:03:00.4]} 1... e5 {[%clk 0:03:00.7]} 2. Nf3 {[%clk 0:03:00.7]}
2... Nc6 {[%clk 0:03:02.1]} 3. Bb5 {[%clk 0:03:01.4]} 3... a6 {[%clk 0:03:03.1]}
4. Bxc6 {[%clk 0:03:02.6]} 4... dxc6 {[%clk 0:03:03.6]} 5. Nc3 {[%clk
0:03:04.5]} 5... Qf6 {[%clk 0:02:58]} 6. d4 {[%clk 0:03:04.9]} 6... exd4 {[%clk
0:02:59]} 7. Qxd4 {[%clk 0:03:06]} 7... Qxd4 {[%clk 0:02:59.7]} 8. Nxd4 {[%clk
0:03:07.9]} 8... Bd6 {[%clk 0:02:56.3]} 9. Be3 {[%clk 0:02:53.9]} 9... Ne7
{[%clk 0:02:54]} 10. O-O-O {[%clk 0:02:53.8]} 10... O-O {[%clk 0:02:39.3]} 11.
f3 {[%clk 0:02:37.8]} 11... b6 {[%clk 0:02:31.2]} 12. Nde2 {[%clk 0:02:32.1]}
12... Be5 {[%clk 0:01:58.7]} 13. Bf4 {[%clk 0:02:26.8]} 13... f6 {[%clk
0:01:52.9]} 14. Bxe5 {[%clk 0:02:23.8]} 14... fxe5 {[%clk 0:01:52.6]} 15. Rd2
{[%clk 0:02:20.6]} 15... Be6 {[%clk 0:01:52.6]} 16. Nd1 {[%clk 0:02:12.5]} 16...
a5 {[%clk 0:01:49.6]} 17. Ne3 {[%clk 0:02:11.2]} 17... Kf7 {[%clk 0:01:27.7]}
18. g3 {[%clk 0:01:44]} 18... g5 {[%clk 0:01:21.2]} 19. h4 {[%clk 0:01:39.9]}
19... Kg7 {[%clk 0:01:21.9]} 20. Rf1 {[%clk 0:01:25.5]} 20... h6 {[%clk
0:01:16.7]} 21. hxg5 {[%clk 0:01:23.7]} 21... hxg5 {[%clk 0:01:18.6]} 22. f4
{[%clk 0:01:23.4]} 22... exf4 {[%clk 0:00:54.2]} 23. gxf4 {[%clk 0:01:25.3]}
23... gxf4 {[%clk 0:00:40.5]} 24. Nxf4 {[%clk 0:01:27.2]} 24... Bf7 {[%clk
0:00:29.8]} 25. Rg2+ {[%clk 0:01:17.1]} 25... Ng6 {[%clk 0:00:30.8]} 26. Rfg1
{[%clk 0:01:06.2]} 1-0

[Event "*** Titled Tuesday Blitz"]
[Site "Chess.com"]
[Date "2019.08.06"]
[Round "3"]
[White "PotapovaM"]
[Black "Everyfishknows"]
[Result "0-1"]
[WhiteElo "2479"]
[BlackElo "2395"]
[TimeControl "180+2"]
[EndTime "13:34:29 PDT"]
[Termination "Everyfishknows won by resignation"]

1. d4 {[%clk 0:03:01.9]} 1... Nf6 {[%clk 0:03:00.8]} 2. c4 {[%clk 0:03:03.1]}
2... e6 {[%clk 0:02:58.2]} 3. Nf3 {[%clk 0:03:03.9]} 3... Bb4+ {[%clk
0:02:59.2]} 4. Nbd2 {[%clk 0:03:04.4]} 4... O-O {[%clk 0:02:58.5]} 5. a3 {[%clk
0:03:04.8]} 5... Be7 {[%clk 0:02:59.7]} 6. e4 {[%clk 0:03:01.3]} 6... d6 {[%clk
0:03:00.8]} 7. Bd3 {[%clk 0:02:58.6]} 7... e5 {[%clk 0:03:01.6]} 8. O-O {[%clk
0:02:58.2]} 8... Nbd7 {[%clk 0:02:45]} 9. b4 {[%clk 0:02:54.7]} 9... a5 {[%clk
0:02:46.3]} 10. Bb2 {[%clk 0:02:55.3]} 10... exd4 {[%clk 0:02:45]} 11. Nxd4
{[%clk 0:02:49.3]} 11... Re8 {[%clk 0:02:36.6]} 12. Nf5 {[%clk 0:02:44.8]} 12...
Bf8 {[%clk 0:02:36.7]} 13. Re1 {[%clk 0:02:31.1]} 13... Ne5 {[%clk 0:02:26.7]}
14. Bf1 {[%clk 0:02:31.7]} 14... Nxe4 {[%clk 0:02:11.9]} 15. Nh6+ {[%clk
0:02:18.7]} 15... gxh6 {[%clk 0:02:13.1]} 16. Nxe4 {[%clk 0:02:18.4]} 16... Bg7
{[%clk 0:02:07.7]} 17. Qh5 {[%clk 0:01:20.1]} 17... Bg4 {[%clk 0:01:53.9]} 18.
Qxg4 {[%clk 0:00:05.3]} 18... Nxg4 {[%clk 0:01:54.3]} 19. Bxg7 {[%clk
0:00:04.2]} 19... Kxg7 {[%clk 0:01:55.1]} 20. h3 {[%clk 0:00:05.4]} 20... Nf6
{[%clk 0:01:55.9]} 21. Ng3 {[%clk 0:00:06.1]} 21... Rxe1 {[%clk 0:01:56.2]} 22.
Rxe1 {[%clk 0:00:07.2]} 22... Qd7 {[%clk 0:01:56.4]} 23. Bd3 {[%clk 0:00:06.9]}
23... Re8 {[%clk 0:01:54.9]} 24. Rd1 {[%clk 0:00:06.3]} 24... axb4 {[%clk
0:01:47.8]} 25. axb4 {[%clk 0:00:07]} 25... Qa4 {[%clk 0:01:49]} 26. Nf5+ {[%clk
0:00:07.3]} 26... Kf8 {[%clk 0:01:50.1]} 27. Rf1 {[%clk 0:00:06.8]} 27... Qxb4
{[%clk 0:01:48.7]} 28. Nxh6 {[%clk 0:00:07.5]} 28... Re1 {[%clk 0:01:48.9]} 29.
Nf5 {[%clk 0:00:06.2]} 29... Rxf1+ {[%clk 0:01:49.9]} 30. Bxf1 {[%clk
0:00:08.1]} 30... Qd2 {[%clk 0:01:47.8]} 31. Ne3 {[%clk 0:00:10]} 31... Ne4
{[%clk 0:01:47.8]} 0-1

[Event "*** Titled Tuesday Blitz"]
[Site "Chess.com"]
[Date "2019.08.06"]
[Round "3"]
[White "GMMarcinDziuba"]
[Black "KhazarBabazada"]
[Result "1/2-1/2"]
[WhiteElo "2700"]
[BlackElo "2831"]
[TimeControl "180+2"]
[EndTime "13:34:32 PDT"]
[Termination "Game drawn by repetition"]

1. Nf3 {[%clk 0:03:01.9]} 1... Nf6 {[%clk 0:03:00.9]} 2. g3 {[%clk 0:03:03.1]}
2... b5 {[%clk 0:03:00.6]} 3. Bg2 {[%clk 0:03:04.4]} 3... Bb7 {[%clk 0:03:00.9]}
4. O-O {[%clk 0:03:06]} 4... e6 {[%clk 0:03:01.4]} 5. b3 {[%clk 0:03:03.6]} 5...
Be7 {[%clk 0:03:02.3]} 6. c4 {[%clk 0:03:04.9]} 6... a6 {[%clk 0:02:59.1]} 7. d4
{[%clk 0:03:03.8]} 7... O-O {[%clk 0:02:59.5]} 8. Nbd2 {[%clk 0:03:04.6]} 8...
d5 {[%clk 0:02:52.9]} 9. cxd5 {[%clk 0:02:40]} 9... exd5 {[%clk 0:02:50.3]} 10.
Bb2 {[%clk 0:02:35.2]} 10... Nbd7 {[%clk 0:02:44.7]} 11. Rc1 {[%clk 0:02:36.2]}
11... Rc8 {[%clk 0:02:31.8]} 12. Bh3 {[%clk 0:02:22.3]} 12... c6 {[%clk
0:02:18.8]} 13. Qc2 {[%clk 0:02:20.6]} 13... c5 {[%clk 0:02:14]} 14. dxc5 {[%clk
0:02:18.6]} 14... Bxc5 {[%clk 0:02:10.9]} 15. Bxf6 {[%clk 0:02:00.4]} 15... Qxf6
{[%clk 0:02:03.9]} 16. Qf5 {[%clk 0:01:31.1]} 16... Qxf5 {[%clk 0:01:52.3]} 17.
Bxf5 {[%clk 0:01:33]} 17... Rfd8 {[%clk 0:01:54.1]} 18. Rc2 {[%clk 0:00:42.7]}
18... g6 {[%clk 0:01:53.1]} 19. Bxd7 {[%clk 0:00:40.7]} 19... Rxd7 {[%clk
0:01:55]} 20. Rfc1 {[%clk 0:00:39.3]} 20... Rdc7 {[%clk 0:01:55.6]} 21. e3
{[%clk 0:00:38.4]} 21... Bb6 {[%clk 0:01:52.1]} 22. Rxc7 {[%clk 0:00:36.1]}
22... Rxc7 {[%clk 0:01:54]} 23. Rxc7 {[%clk 0:00:35.6]} 23... Bxc7 {[%clk
0:01:55.9]} 24. Nd4 {[%clk 0:00:19.6]} 24... Kf8 {[%clk 0:01:56.7]} 25. b4
{[%clk 0:00:20.4]} 25... Ke7 {[%clk 0:01:55]} 26. N2b3 {[%clk 0:00:21.6]} 26...
Kd6 {[%clk 0:01:53]} 27. Kf1 {[%clk 0:00:22.2]} 27... Bc8 {[%clk 0:01:53]} 28.
Ke2 {[%clk 0:00:22.9]} 28... h5 {[%clk 0:01:51.4]} 29. h4 {[%clk 0:00:20.9]}
29... Bb6 {[%clk 0:01:52.3]} 30. Kd2 {[%clk 0:00:18.6]} 30... Bd7 {[%clk
0:01:50.3]} 31. Ke2 {[%clk 0:00:19.6]} 31... Bg4+ {[%clk 0:01:48.7]} 32. Kd2
{[%clk 0:00:20.8]} 32... Bd7 {[%clk 0:01:48.8]} 33. Ke2 {[%clk 0:00:21.5]} 33...
Bg4+ {[%clk 0:01:48.5]} 34. Kd2 {[%clk 0:00:22.8]} 34... Bd7 {[%clk 0:01:49.6]}
1/2-1/2

[Event "*** Titled Tuesday Blitz"]
[Site "Chess.com"]
[Date "2019.08.06"]
[Round "3"]
[White "OparinGrigoriy"]
[Black "Faustregel"]
[Result "1-0"]
[WhiteElo "2994"]
[BlackElo "2513"]
[TimeControl "180+2"]
[EndTime "13:34:34 PDT"]
[Termination "OparinGrigoriy won by resignation"]

1. Nf3 {[%clk 0:02:55.5]} 1... d5 {[%clk 0:02:59.6]} 2. g3 {[%clk 0:02:56.8]}
2... c5 {[%clk 0:02:58]} 3. Bg2 {[%clk 0:02:57.6]} 3... Nc6 {[%clk 0:02:59.3]}
4. O-O {[%clk 0:02:58.9]} 4... Nf6 {[%clk 0:03:00.6]} 5. d4 {[%clk 0:02:59.4]}
5... e6 {[%clk 0:02:54.7]} 6. b3 {[%clk 0:02:59]} 6... cxd4 {[%clk 0:02:49.7]}
7. Nxd4 {[%clk 0:03:00.9]} 7... Bc5 {[%clk 0:02:50.9]} 8. Bb2 {[%clk 0:03:01]}
8... O-O {[%clk 0:02:51.4]} 9. Nxc6 {[%clk 0:02:53.8]} 9... bxc6 {[%clk
0:02:51.8]} 10. Nd2 {[%clk 0:02:55.7]} 10... a5 {[%clk 0:02:47.9]} 11. c4 {[%clk
0:02:51.2]} 11... a4 {[%clk 0:02:46.4]} 12. Qc2 {[%clk 0:02:50.4]} 12... Qe7
{[%clk 0:02:42.4]} 13. Rad1 {[%clk 0:02:50.5]} 13... axb3 {[%clk 0:02:36.7]} 14.
axb3 {[%clk 0:02:51.1]} 14... Bd7 {[%clk 0:02:33.7]} 15. e4 {[%clk 0:02:52.1]}
15... Rfc8 {[%clk 0:01:51.8]} 16. Rfe1 {[%clk 0:02:47]} 16... dxc4 {[%clk
0:01:41.5]} 17. Nxc4 {[%clk 0:02:46.8]} 17... Be8 {[%clk 0:01:36.7]} 18. Ne5
{[%clk 0:02:41.8]} 18... Bb4 {[%clk 0:01:29.2]} 19. Re2 {[%clk 0:02:40.4]} 19...
Ra5 {[%clk 0:01:13.1]} 20. Nc4 {[%clk 0:02:40.7]} 20... Rh5 {[%clk 0:01:01.8]}
21. h3 {[%clk 0:02:41.3]} 21... Rc5 {[%clk 0:00:54.1]} 22. Bd4 {[%clk
0:02:25.6]} 22... Rb5 {[%clk 0:00:54.1]} 23. Qb2 {[%clk 0:02:24.3]} 23... h5
{[%clk 0:00:47.2]} 24. Re3 {[%clk 0:02:21.7]} 24... Rcb8 {[%clk 0:00:41.3]} 25.
Rf3 {[%clk 0:02:19.8]} 25... Bc5 {[%clk 0:00:34]} 26. Be5 {[%clk 0:02:08]} 26...
Rd8 {[%clk 0:00:34.5]} 27. Rfd3 {[%clk 0:02:02.3]} 27... Rxd3 {[%clk 0:00:30.6]}
28. Rxd3 {[%clk 0:02:04.2]} 28... Qb7 {[%clk 0:00:19.8]} 29. Bxf6 {[%clk
0:02:01.1]} 29... gxf6 {[%clk 0:00:20.7]} 30. Qxf6 {[%clk 0:02:03]} 30... Rxb3
{[%clk 0:00:17.6]} 31. Rd8 {[%clk 0:02:03.9]} 31... Rb1+ {[%clk 0:00:16.6]} 32.
Kh2 {[%clk 0:02:05]} 32... Qe7 {[%clk 0:00:10.7]} 33. Qxe7 {[%clk 0:02:05.4]}
33... Bxe7 {[%clk 0:00:12.2]} 34. Rxe8+ {[%clk 0:02:07.3]} 34... Kg7 {[%clk
0:00:13]} 35. Rxe7 {[%clk 0:02:07.4]} 1-0